bitfinex/quotes_BTCUSD_20241119
["timestamp","ask_amount","ask_price","bid_price","bid_amount"]
[1732002703237,0.00291095,91866.0,91861.0,0.108859]
[1732002703470,0.00291095,91866.0,91859.0,0.111861]
[1732002703679,0.003,91866.0,91859.0,0.114861]
[1732002703884,0.003,91866.0,91859.0,0.006]
[1732002704097,0.003,91866.0,91860.0,0.108861]
[1732002704540,0.0503,91867.0,91856.0,0.217732]
[1732002704747,0.0503,91867.0,91859.0,0.108862]
[1732002705672,0.0473,91867.0,91859.0,0.108862]
[1732002705905,0.003,91866.0,91859.0,0.111862]
[1732002706128,0.003,91866.0,91861.0,0.003]
[1732002706559,0.003,91866.0,91859.0,0.108862]
[1732002706560,0.0503,91867.0,91859.0,0.006]
[1732002706773,0.0473,91867.0,91860.0,0.108861]
[1732002706993,0.003,91866.0,91860.0,0.108861]
[1732002707207,0.003,91866.0,91859.0,0.117861]
[1732002707433,0.0503,91867.0,91859.0,0.1135706]
[1732002707665,0.09747124,91866.0,91859.0,0.0017096]
[1732002708106,0.09747124,91866.0,91860.0,0.003]
[1732002708804,0.10047124,91866.0,91861.0,0.003]
[1732002709044,0.20632624,91866.0,91860.0,0.003]
[1732002709268,0.09747124,91865.0,91860.0,0.006]
[1732002709497,0.003,91866.0,91860.0,0.006]
[1732002709710,0.02031385,91865.0,91860.0,0.006]
[1732002709923,0.02031385,91864.0,91860.0,0.003]
[1732002710155,0.02031385,91863.0,91859.0,0.0047096]
[1732002710373,0.02031385,91862.0,91860.0,0.003]
[1732002710593,0.02031385,91861.0,91860.0,0.003]
[1732002711058,0.02031385,91861.0,91860.0,0.006]
[1732002711504,0.02031385,91861.0,91860.0,0.003]
[1732002711963,0.02331407,91861.0,91860.0,0.003]
[1732002712663,0.0473,91867.0,91860.0,0.003]
[1732002712880,0.003,91861.0,91860.0,0.006]
[1732002713101,0.0473,91867.0,91859.0,0.0017096]
[1732002713314,0.003,91861.0,91860.0,0.003]
[1732002713521,0.006,91861.0,91860.0,0.006]
[1732002713728,0.003,91861.0,91860.0,0.003]
[1732002713936,0.0503,91867.0,91860.0,0.003]
[1732002714389,0.0533,91867.0,91860.0,0.003]
[1732002714824,0.0503,91867.0,91860.0,0.003]
[1732002715035,0.0503,91867.0,91860.0,0.006]
[1732002715317,0.0503,91867.0,91860.0,0.003]
[1732002715525,0.003,91861.0,91860.0,0.006]
[1732002715734,0.0817,91862.0,91860.0,0.003]
[1732002716150,0.0817,91862.0,91860.0,0.006]
[1732002716355,0.0817,91862.0,91860.0,0.003]
[1732002716591,0.003,91861.0,91860.0,0.003]
[1732002716808,0.003,91861.0,91860.0,0.012]
[1732002717034,0.006,91861.0,91860.0,0.012]
[1732002717263,0.27779102,91861.0,91860.0,0.012]
[1732002717482,0.15996,91861.0,91860.0,0.003]
[1732002717707,0.15996,91861.0,91859.0,0.0017096]
[1732002717708,0.108861,91860.0,91859.0,0.0017096]
[1732002718866,0.0481,91861.0,91859.0,0.0017096]
[1732002719082,0.15696,91861.0,91860.0,0.003]
[1732002719306,0.108861,91860.0,91859.0,0.0017096]
[1732002719524,0.111861,91860.0,91859.0,0.0047096]
[1732002719738,0.111861,91860.0,91859.0,0.0017096]
[1732002719955,0.108861,91860.0,91859.0,0.0017096]
[1732002720169,0.108861,91860.0,91859.0,0.0047096]
[1732002720390,0.108861,91860.0,91859.0,0.0017096]
[1732002720617,0.111861,91860.0,91859.0,0.0077096]
[1732002720838,0.114861,91860.0,91859.0,0.0107096]
[1732002722436,0.006,91860.0,91859.0,0.0107096]
[1732002723345,0.114861,91860.0,91859.0,0.0107096]
[1732002723813,0.006,91860.0,91859.0,0.0107096]
[1732002724759,0.02631425,91860.0,91859.0,0.0107096]
[1732002724974,0.006,91860.0,91859.0,0.0107096]
[1732002725175,0.02631425,91860.0,91859.0,0.0107096]
[1732002726055,0.13517525,91860.0,91859.0,0.0107096]
[1732002726278,0.31327534,91860.0,91859.0,0.0107096]
[1732002726491,0.34728698,91860.0,91859.0,0.0107096]
[1732002726973,0.4447563,91860.0,91859.0,0.0107096]
[1732002727197,0.47725237,91860.0,91859.0,0.0107096]
[1732002727444,0.39664064,91860.0,91859.0,0.0107096]
[1732002727658,0.16400547,91860.0,91859.0,0.0107096]
[1732002727883,0.27286647,91860.0,91859.0,0.0047096]
[1732002728101,0.27586647,91860.0,91859.0,0.0077096]
[1732002728568,0.27786647,91860.0,91859.0,0.0027096]
[1732002728783,0.27286647,91860.0,91859.0,0.0017096]
[1732002729008,0.27786647,91860.0,91859.0,0.0027096]
[1732002729876,0.27886647,91860.0,91859.0,0.0077096]
[1732002731636,0.3694782,91860.0,91859.0,0.0077096]
[1732002731846,0.36948656,91860.0,91859.0,0.0077096]
[1732002732078,0.47854911,91860.0,91859.0,0.0077096]
[1732002732309,0.5759911,91860.0,91859.0,0.0077096]
[1732002732536,0.83826153,91860.0,91859.0,0.0077096]
[1732002732989,0.8057477,91860.0,91859.0,0.0077096]
[1732002734305,1.04930043,91860.0,91859.0,0.0077096]
[1732002735172,1.08179153,91860.0,91859.0,0.0077096]
[1732002735381,0.8382388,91860.0,91859.0,0.0077096]
[1732002735792,0.83810926,91860.0,91859.0,0.0077096]
[1732002736054,1.04914518,91860.0,91859.0,0.0077096]
[1732002736251,0.80561816,91860.0,91859.0,0.0077096]
[1732002737412,0.82783117,91860.0,91859.0,0.0077096]
[1732002737633,0.86166308,91860.0,91859.0,0.0077096]
[1732002738986,1.07527481,91860.0,91859.0,0.0077096]
[1732002739211,1.37750724,91860.0,91859.0,0.0077096]
[1732002739854,1.10556354,91860.0,91859.0,0.0077096]
[1732002740090,1.10556354,91860.0,91859.0,6e-07]
[1732002740091,1.10756354,91860.0,91859.0,6e-07]
[1732002740317,0.356873,91850.0,91849.0,0.0017104]
[1732002740568,0.356873,91850.0,91849.0,4e-07]
[1732002740569,0.59983601,91850.0,91849.0,4e-07]
[1732002740780,0.59983601,91850.0,91824.0,0.16293102]
[1732002740781,0.244902,91825.0,91824.0,0.16293102]
[1732002741034,0.45486501,91825.0,91824.0,0.16293102]
[1732002741261,0.118905,91823.0,91822.0,0.001711]
[1732002741472,0.34551459,91823.0,91822.0,0.001711]
[1732002741684,0.24825628,91823.0,91822.0,0.001711]
[1732002742325,0.5318873,91823.0,91822.0,0.001711]
[1732002742545,0.51483663,91823.0,91822.0,0.001711]
[1732002742758,0.36945628,91823.0,91822.0,0.003711]
[1732002742982,0.5152956,91823.0,91822.0,0.003711]
[1732002743209,0.34816755,91823.0,91822.0,0.001711]
[1732002743425,0.5070826,91823.0,91822.0,0.001711]
[1732002743931,0.5110826,91823.0,91822.0,0.002711]
[1732002744151,0.41392821,91823.0,91822.0,0.002711]
[1732002744376,0.40992821,91823.0,91822.0,0.001711]
[1732002744792,0.41592821,91823.0,91822.0,0.001711]
[1732002750380,0.30702321,91823.0,91795.0,0.17460899]
[1732002750595,0.108927,91804.0,91797.0,0.108935]
[1732002751902,0.217851,91806.0,91795.0,0.17660899]
[1732002752116,0.003,91804.0,91797.0,0.003]
[1732002752337,0.003,91804.0,91803.0,0.108928]
[1732002752772,0.0095,91812.0,91806.0,0.108924]
[1732002753198,0.16293102,91816.0,91805.0,0.108926]
[1732002753199,0.003,91806.0,91805.0,0.108926]
[1732002753438,0.0095,91811.0,91804.0,0.08061173]
[1732002753645,0.17243102,91816.0,91815.0,0.108914]
[1732002754277,0.0095,91815.0,91814.0,0.108915]
[1732002754504,0.0095,91815.0,91812.0,0.265334]
[1732002754505,0.0095,91825.0,91812.0,0.0475]
[1732002754736,0.043571,91830.0,91820.0,0.217817]
[1732002754737,0.0095,91830.0,91820.0,0.217817]
[1732002754955,0.043569,91835.0,91830.0,0.108896]
[1732002755161,0.043569,91835.0,91822.0,0.0467]
[1732002755407,0.043569,91835.0,91831.0,0.108894]
[1732002755622,0.108889,91836.0,91831.0,0.108894]
[1732002756068,0.0095,91840.0,91831.0,0.108895]
[1732002756069,0.21777,91840.0,91831.0,0.108895]
[1732002756296,0.0095,91834.0,91830.0,0.108896]
[1732002756501,0.0095,91834.0,91831.0,0.108895]
[1732002756974,0.0095,91834.0,91829.0,0.108897]
[1732002757183,0.108896,91831.0,91823.0,0.21781]
[1732002757412,0.0095,91834.0,91831.0,0.009]
[1732002757413,0.108894,91832.0,91831.0,0.009]
[1732002757616,0.217786,91833.0,91824.0,0.108902]
[1732002757617,0.108893,91833.0,91824.0,0.108902]
[1732002757823,0.217786,91833.0,91825.0,0.108902]
[1732002758056,0.108894,91832.0,91831.0,0.027]
[1732002758286,0.108894,91832.0,91796.0,0.217872]
[1732002758287,0.298317,91820.0,91800.0,0.217863]
[1732002758515,0.298317,91820.0,91797.0,0.16293102]
[1732002758516,0.10906255,91819.0,91807.0,0.16293102]
[1732002758746,0.10906255,91819.0,91803.0,0.217857]
[1732002758969,0.108919,91811.0,91804.0,0.108926]
[1732002759214,0.108922,91809.0,91802.0,0.108929]
[1732002759468,0.217838,91812.0,91799.0,0.0005]
[1732002759724,0.108921,91810.0,91807.0,0.029]
[1732002759937,0.108918,91813.0,91807.0,0.029]
[1732002760149,0.16293102,91816.0,91807.0,0.029]
[1732002760150,0.108921,91810.0,91807.0,0.029]
[1732002760797,0.003,91812.0,91805.0,0.108925]
[1732002761226,0.10892,91811.0,91804.0,0.028]
[1732002761446,0.10892,91811.0,91805.0,0.108925]
[1732002761652,0.217834,91813.0,91807.0,0.028]
[1732002761653,0.108918,91813.0,91807.0,0.028]
[1732002761895,0.01,91841.0,91807.0,0.028]
[1732002761896,0.108911,91818.0,91808.0,0.217845]
[1732002762119,0.227315,91821.0,91811.0,0.108918]
[1732002762120,0.16293102,91814.0,91811.0,0.108918]
[1732002762337,0.227315,91821.0,91802.0,0.01]
[1732002762338,0.227315,91821.0,91812.0,0.108917]
[1732002762557,0.227315,91821.0,91802.0,0.01]
[1732002762558,0.16293102,91817.0,91813.0,0.108916]
[1732002762764,0.003,91810.0,91809.0,0.108921]
[1732002763251,0.16293102,91817.0,91807.0,0.246846]
[1732002763453,0.16293102,91817.0,91811.0,0.108918]
[1732002763657,0.16293102,91817.0,91807.0,0.246846]
[1732002763909,0.16293102,91817.0,91815.0,0.108913]
[1732002764150,0.16293102,91817.0,91802.0,0.01]
[1732002764151,0.1333,91820.0,91805.0,0.217851]
[1732002764374,0.1333,91820.0,91815.0,0.108913]
[1732002764609,0.238209,91820.0,91815.0,0.108913]
[1732002764832,0.247209,91820.0,91814.0,0.108915]
[1732002765039,0.1383,91820.0,91813.0,0.217833]
[1732002765274,0.1293,91820.0,91816.0,0.108913]
[1732002765482,0.1293,91820.0,91815.0,0.108914]
[1732002765691,0.1303,91820.0,91815.0,0.108914]
[1732002765923,0.1293,91820.0,91815.0,0.108914]
[1732002766139,0.001,91817.0,91816.0,0.108912]
[1732002766568,0.1293,91820.0,91816.0,0.108912]
[1732002767021,0.0008555,91817.0,91816.0,0.108912]
[1732002767442,0.0008555,91817.0,91814.0,0.108914]
[1732002767684,0.0008555,91817.0,91816.0,0.108913]
[1732002767888,0.0008555,91817.0,91816.0,0.109913]
[1732002768104,0.0008555,91817.0,91816.0,0.108913]
[1732002768327,0.0078555,91817.0,91816.0,0.109913]
[1732002769405,0.0088555,91817.0,91816.0,0.109913]
[1732002770281,0.0078555,91817.0,91816.0,0.109913]
[1732002770704,0.0108555,91817.0,91816.0,0.109913]
[1732002771154,0.0078555,91817.0,91816.0,0.109913]
[1732002771367,0.0008555,91817.0,91816.0,0.108913]
[1732002771584,0.0018555,91817.0,91816.0,0.136913]
[1732002771802,0.0018555,91817.0,91816.0,0.108913]
[1732002772258,0.0028555,91817.0,91816.0,0.136913]
[1732002772480,0.0058555,91817.0,91816.0,0.108913]
[1732002772683,0.27183302,91826.0,91820.0,0.108908]
[1732002772684,0.21118852,91826.0,91820.0,0.108908]
[1732002772915,0.21118852,91826.0,91817.0,0.108912]
[1732002773132,0.108906,91822.0,91817.0,0.108912]
[1732002774174,0.109906,91822.0,91817.0,0.136912]
[1732002774964,0.108906,91822.0,91817.0,0.108912]
[1732002775161,0.108906,91822.0,91813.0,0.217834]
[1732002775162,0.109902,91826.0,91820.0,0.108908]
[1732002775394,0.001,91822.0,91820.0,0.108908]
[1732002775591,0.001,91822.0,91818.0,0.217822]
[1732002775765,0.004,91822.0,91821.0,0.108907]
[1732002776340,0.001,91822.0,91821.0,0.108907]
[1732002776679,0.16293102,91827.0,91824.0,0.108903]
[1732002776875,0.023,91826.0,91824.0,0.108903]
[1732002777283,0.16293102,91827.0,91824.0,0.108903]
[1732002777494,0.016,91822.0,91821.0,0.002]
[1732002777900,0.0497,91828.0,91815.0,0.01]
[1732002778095,0.023,91826.0,91824.0,0.002]
[1732002778300,0.023,91826.0,91824.0,0.110903]
[1732002778679,0.0497,91828.0,91824.0,0.108903]
[1732002778904,0.267499,91828.0,91821.0,0.002]
[1732002779076,0.186306,91822.0,91821.0,0.002]
[1732002779314,0.186306,91822.0,91810.0,0.227841]
[1732002779315,0.186306,91822.0,91816.0,0.108913]
[1732002779514,0.186306,91822.0,91817.0,0.108912]
[1732002779663,0.0774,91822.0,91816.0,0.0017104]
[1732002779866,0.0934,91822.0,91821.0,0.002]
[1732002780284,0.0944,91822.0,91821.0,0.004]
[1732002780515,0.0784,91822.0,91821.0,0.002]
[1732002780873,0.0814,91822.0,91821.0,0.002]
[1732002781518,0.0964,91822.0,91821.0,0.003]
[1732002784088,0.205306,91822.0,91821.0,0.003]
[1732002784311,0.0964,91822.0,91821.0,0.003]
[1732002785261,0.253006,91822.0,91821.0,0.003]
[1732002787807,0.177006,91822.0,91821.0,0.003]
[1732002791468,0.38355678,91822.0,91821.0,0.003]
[1732002791674,0.38355354,91822.0,91821.0,0.003]
[1732002791946,0.38355248,91822.0,91821.0,0.003]
[1732002792144,0.28606855,91822.0,91821.0,0.003]
[1732002792358,0.28506855,91822.0,91821.0,0.0027104]
[1732002792588,0.28506855,91822.0,91821.0,0.0037104]
[1732002792589,0.28606855,91822.0,91821.0,0.0037104]
[1732002792815,0.27106855,91822.0,91821.0,0.0027104]
[1732002793033,0.29806855,91822.0,91821.0,0.0037104]
[1732002793255,0.44031909,91822.0,91821.0,0.0027104]
[1732002793480,0.65401021,91822.0,91821.0,0.0027104]
[1732002793704,0.62701021,91822.0,91821.0,0.0017104]
[1732002794148,0.65401021,91822.0,91821.0,0.0027104]
[1732002794604,0.66001021,91822.0,91821.0,0.0027104]
[1732002795434,0.85502622,91822.0,91821.0,0.0027104]
[1732002795646,0.66001021,91822.0,91821.0,0.0027104]
[1732002796515,0.85502622,91822.0,91821.0,0.0027104]
[1732002797164,0.70323888,91822.0,91821.0,0.0027104]
[1732002797648,0.94700889,91822.0,91821.0,0.0027104]
[1732002798295,0.70323888,91822.0,91821.0,0.0027104]
[1732002798544,0.94711379,91822.0,91821.0,0.0027104]
[1732002798739,0.70323888,91822.0,91821.0,0.0027104]
[1732002802031,0.73623888,91822.0,91821.0,0.0027104]
[1732002802716,0.66023888,91822.0,91821.0,0.0027104]
[1732002802919,0.62723888,91822.0,91821.0,0.0017104]
[1732002803126,0.65423888,91822.0,91821.0,0.0027104]
[1732002803345,0.65426795,91822.0,91821.0,0.0027104]
[1732002804206,0.66726795,91822.0,91821.0,0.0027104]
[1732002804641,0.66812275,91822.0,91821.0,0.0027104]
[1732002805504,0.63512275,91822.0,91821.0,0.0027104]
[1732002805673,0.75852275,91822.0,91821.0,0.0027104]
[1732002807245,1.00236278,91822.0,91821.0,0.0027104]
[1732002808307,0.75852275,91822.0,91821.0,0.0027104]
[1732002809108,0.95358127,91822.0,91821.0,0.0027104]
[1732002809535,0.75852275,91822.0,91821.0,0.0027104]
[1732002810852,0.95356728,91822.0,91821.0,0.0027104]
[1732002812007,0.75852275,91822.0,91821.0,0.0027104]
[1732002812248,0.95356342,91822.0,91821.0,0.0027104]
[1732002812512,0.75852275,91822.0,91821.0,0.0027104]
[1732002813304,0.75851103,91822.0,91821.0,0.0027104]
[1732002816840,1.00229237,91822.0,91821.0,0.0027104]
[1732002817284,0.79238773,91822.0,91821.0,0.0027104]
[1732002817732,0.67650503,91822.0,91821.0,0.0027104]
[1732002817982,0.78541103,91822.0,91821.0,0.0027104]
[1732002818190,0.77241103,91822.0,91821.0,0.0027104]
[1732002818391,0.77241419,91822.0,91821.0,0.0027104]
[1732002818625,0.78741419,91822.0,91821.0,0.0027104]
[1732002818845,0.95544177,91822.0,91821.0,0.0017104]
[1732002819057,0.96744177,91822.0,91821.0,0.0017104]
[1732002819467,0.77241419,91822.0,91821.0,0.0017104]
[1732002819890,0.74541419,91822.0,91821.0,0.0017104]
[1732002820332,0.77241419,91822.0,91821.0,0.0017104]
[1732002820553,0.78741419,91822.0,91821.0,0.0017104]
[1732002821780,1.03119809,91822.0,91821.0,0.0017104]
[1732002822032,0.78741419,91822.0,91821.0,0.0017104]
[1732002822466,0.82130754,91822.0,91821.0,0.0017104]
[1732002823638,1.03116743,91822.0,91821.0,0.0017104]
[1732002823875,1.06507239,91822.0,91821.0,0.0017104]
[1732002824078,0.78741419,91822.0,91821.0,0.0017104]
[1732002824280,1.06507234,91822.0,91821.0,0.0017104]
[1732002824483,0.8213191,91822.0,91821.0,0.0017104]
[1732002824707,1.06511163,91822.0,91821.0,0.0017104]
[1732002825146,0.8213191,91822.0,91821.0,0.0017104]
[1732002825363,1.0651136,91822.0,91821.0,0.0017104]
[1732002825584,0.78741419,91822.0,91821.0,0.0017104]
[1732002826660,0.98241962,91822.0,91821.0,0.0017104]
[1732002827519,0.78741419,91822.0,91821.0,0.0017104]
[1732002827765,0.82132687,91822.0,91821.0,0.0017104]
[1732002828445,0.82131189,91822.0,91821.0,0.0017104]
[1732002831272,0.69791189,91822.0,91821.0,0.0017104]
[1732002832611,1.05152557,91822.0,91821.0,0.0017104]
[1732002832816,1.04952557,91822.0,91821.0,0.0017104]
[1732002833034,1.05152557,91822.0,91821.0,0.0017104]
[1732002834203,1.00952557,91822.0,91821.0,0.0017104]
[1732002834408,1.03652557,91822.0,91821.0,0.0017104]
[1732002834610,1.05552557,91822.0,91821.0,0.0017104]
[1732002835060,1.03652557,91822.0,91821.0,0.0017104]
[1732002835462,1.05652557,91822.0,91821.0,0.0017104]
[1732002836080,0.97381873,91822.0,91821.0,0.0017104]
[1732002836546,1.05452557,91822.0,91821.0,0.0017104]
[1732002837271,1.0546791,91822.0,91821.0,0.0017104]
[1732002837683,0.97597226,91822.0,91821.0,0.0017104]
[1732002837863,1.0566791,91822.0,91821.0,0.0017104]
[1732002838490,1.05467828,91822.0,91821.0,0.0017104]
[1732002839588,1.05667828,91822.0,91821.0,0.0017104]
[1732002840245,1.05467828,91822.0,91821.0,0.0017104]
[1732002841972,1.05458657,91822.0,91821.0,0.0017104]
[1732002843062,1.0257257,91822.0,91821.0,0.0017104]
[1732002843534,0.86431202,91822.0,91821.0,0.0017104]
[1732002843755,1.0257257,91822.0,91821.0,0.0017104]
[1732002845397,0.83131202,91822.0,91821.0,0.0017104]
[1732002845623,0.83391886,91822.0,91821.0,0.0017104]
[1732002846270,0.78881886,91822.0,91821.0,0.0017104]
[1732002846902,0.75492955,91822.0,91821.0,0.0017104]
[1732002847571,0.70680095,91822.0,91821.0,0.0017104]
[1732002847782,0.81570695,91822.0,91821.0,0.0017104]
[1732002849360,0.86015194,91822.0,91821.0,0.0017104]
[1732002850197,0.86100674,91822.0,91821.0,0.0017104]
[1732002850858,0.01,91819.0,91810.0,0.0356208]
[1732002851082,0.108919,91811.0,91810.0,0.0356208]
[1732002852152,0.14627872,91813.0,91807.0,0.0486]
[1732002852371,0.29853884,91814.0,91807.0,0.0486]
[1732002852372,0.108922,91808.0,91807.0,0.0486]
[1732002852582,0.20644034,91808.0,91807.0,0.0486]
[1732002853659,0.09751834,91808.0,91796.0,0.0471]
[1732002853879,0.108932,91800.0,91796.0,0.0471]
[1732002854115,0.108932,91800.0,91797.0,0.0759]
[1732002854321,0.21786,91802.0,91797.0,0.0759]
[1732002854752,0.09800702,91801.0,91797.0,0.0759]
[1732002854953,0.108933,91800.0,91797.0,0.0759]
[1732002855388,0.109933,91800.0,91797.0,0.0759]
[1732002857358,0.109933,91800.0,91795.0,0.001711]
[1732002857359,0.001,91800.0,91795.0,0.001711]
[1732002857562,0.108937,91796.0,91795.0,0.001711]
[1732002857765,0.18964384,91796.0,91795.0,0.001711]
[1732002859053,0.28714909,91796.0,91795.0,0.001711]
[1732002859192,0.19164384,91796.0,91795.0,0.001711]
[1732002859395,0.28914909,91796.0,91795.0,0.001711]
[1732002859641,0.19164384,91796.0,91795.0,0.001711]
[1732002860015,0.19564384,91796.0,91795.0,0.001711]
[1732002860949,0.34192256,91796.0,91795.0,0.001711]
[1732002861517,0.19564384,91796.0,91795.0,0.001711]
[1732002862570,0.18417855,91796.0,91795.0,0.001711]
[1732002862818,0.28911555,91796.0,91795.0,0.001711]
[1732002862990,0.28711555,91796.0,91795.0,0.001711]
[1732002863779,0.30011555,91796.0,91795.0,0.001711]
[1732002864308,0.30111555,91796.0,91795.0,0.001711]
[1732002865482,0.20364384,91796.0,91795.0,0.001711]
[1732002872633,0.3497927,91796.0,91795.0,0.001711]
[1732002872840,0.20364384,91796.0,91795.0,0.001711]
[1732002873051,0.30107744,91796.0,91795.0,0.001711]
[1732002873267,0.3010775,91796.0,91795.0,0.001711]
[1732002874511,0.30108439,91796.0,91795.0,0.001711]
[1732002874713,0.30108943,91796.0,91795.0,0.001711]
[1732002875109,0.3010942,91796.0,91795.0,0.001711]
[1732002875318,0.20364384,91796.0,91795.0,0.001711]
[1732002875545,0.3010942,91796.0,91795.0,0.001711]
[1732002876192,0.20364384,91796.0,91795.0,0.001711]
[1732002876401,0.3010942,91796.0,91795.0,0.001711]
[1732002876813,0.301107,91796.0,91795.0,0.001711]
[1732002877021,0.20364384,91796.0,91795.0,0.001711]
[1732002877452,0.30110698,91796.0,91795.0,0.001711]
[1732002877712,0.122937,91796.0,91795.0,0.001711]
[1732002883908,0.22041713,91796.0,91795.0,0.001711]
[1732002885017,0.0486,91794.0,91778.0,0.19483455]
[1732002885215,0.0486,91794.0,91780.0,0.108955]
[1732002885216,0.108949,91786.0,91780.0,0.108955]
[1732002885870,0.0486,91794.0,91780.0,0.108955]
[1732002885871,0.10895,91785.0,91780.0,0.108955]
[1732002887408,0.003,91786.0,91779.0,0.108956]
[1732002887631,0.10895,91785.0,91780.0,0.108955]
[1732002888072,0.003,91786.0,91785.0,0.10895]
[1732002888275,0.003,91786.0,91785.0,0.19005]
[1732002888647,0.326821,91793.0,91785.0,0.19005]
[1732002888999,0.003,91794.0,91785.0,0.0811]
[1732002889245,0.108947,91788.0,91783.0,0.108952]
[1732002889410,0.006,91786.0,91781.0,0.326863]
[1732002889855,0.003,91786.0,91781.0,0.217909]
[1732002890274,0.003,91786.0,91783.0,0.108952]
[1732002890936,0.10896,91776.0,91775.0,0.04502326]
[1732002891141,0.003,91786.0,91771.0,0.0818]
[1732002891362,0.108962,91775.0,91771.0,0.0004]
[1732002891614,0.10896,91777.0,91771.0,0.0004]
[1732002891828,0.16293102,91784.0,91771.0,0.0004]
[1732002891829,0.21791,91781.0,91771.0,0.0004]
[1732002892032,0.108962,91775.0,91771.0,0.0004]
[1732002892253,0.108954,91782.0,91771.0,0.0004]
[1732002892677,0.003,91775.0,91771.0,0.0004]
[1732002893135,0.003,91775.0,91771.0,0.109366]
[1732002893555,0.0478,91780.0,91771.0,0.109366]
[1732002893732,0.003,91775.0,91771.0,0.0004]
[1732002893983,0.003,91775.0,91773.0,0.108964]
[1732002894267,0.006,91775.0,91772.0,0.108965]
[1732002894902,0.003,91775.0,91771.0,0.0034]
[1732002895112,0.0478,91780.0,91772.0,0.108965]
[1732002895321,0.0478,91780.0,91771.0,0.0004]
[1732002895322,0.006,91775.0,91773.0,0.003]
[1732002895563,0.006,91775.0,91756.0,0.0138642]
[1732002895564,0.227939,91769.0,91756.0,0.0138642]
[1732002895793,0.08070684,91773.0,91756.0,0.0138642]
[1732002895794,0.32038984,91757.0,91756.0,0.0138642]
[1732002896007,0.599381,91757.0,91756.0,0.0138642]
[1732002896230,0.490398,91757.0,91756.0,0.0138642]
[1732002896445,0.230666,91757.0,91756.0,0.0138642]
[1732002897086,0.28640271,91757.0,91756.0,0.0138642]
[1732002898271,0.26094935,91757.0,91756.0,0.0138642]
[1732002898445,0.29330948,91757.0,91756.0,0.0138642]
[1732002898650,0.25791349,91757.0,91756.0,0.0138642]
[1732002899096,0.30241593,91757.0,91756.0,0.0138642]
[1732002899300,0.32941593,91757.0,91756.0,0.0138642]
[1732002899515,0.30241593,91757.0,91756.0,0.0138642]
[1732002899913,0.32941593,91757.0,91756.0,0.0138642]
[1732002900332,0.16323049,91757.0,91756.0,0.0138642]
[1732002900506,0.034,91757.0,91756.0,0.0138642]
[1732002901105,0.027,91757.0,91756.0,0.0138642]
[1732002901282,0.21995719,91762.0,91756.0,0.01357757]
[1732002901488,0.026,91757.0,91756.0,0.01357757]
[1732002901697,0.134983,91757.0,91756.0,0.01357757]
[1732002902119,0.131983,91757.0,91756.0,0.01357757]
[1732002902517,0.023,91757.0,91756.0,0.01357757]
[1732002904011,0.026,91757.0,91756.0,0.01357757]
[1732002905936,0.003,91757.0,91756.0,0.38614251]
[1732002906131,0.011,91757.0,91756.0,0.39614251]
[1732002906669,0.16347616,91769.0,91768.0,0.10897]
[1732002907084,0.0972795,91778.0,91777.0,0.108959]
[1732002907486,0.0212795,91778.0,91777.0,0.108959]
[1732002907722,0.30939542,91781.0,91780.0,0.108956]
[1732002908136,0.14591926,91781.0,91780.0,0.108956]
[1732002908943,0.14591926,91781.0,91778.0,0.108958]
[1732002909145,0.02023428,91782.0,91778.0,0.108958]
[1732002909328,0.02623428,91781.0,91780.0,0.002]
[1732002909582,0.0068554,91781.0,91780.0,0.002]
[1732002909786,0.0068554,91781.0,91780.0,0.110956]
[1732002910360,0.02408968,91781.0,91780.0,0.108956]
[1732002910559,0.0008554,91781.0,91780.0,0.108956]
[1732002910763,0.0038554,91781.0,91780.0,0.108956]
[1732002911335,0.0008554,91781.0,91780.0,0.108956]
[1732002911464,0.02708968,91781.0,91780.0,0.121956]
[1732002911670,0.0038554,91781.0,91780.0,0.115956]
[1732002911904,0.0038554,91781.0,91780.0,0.108956]
[1732002912081,0.0038554,91781.0,91780.0,0.114956]
[1732002912280,0.0038554,91781.0,91780.0,0.115956]
[1732002912481,0.02708968,91781.0,91780.0,0.121956]
[1732002912685,0.0068554,91781.0,91780.0,0.121956]
[1732002913721,0.02409434,91781.0,91780.0,0.115956]
[1732002913936,0.0008554,91781.0,91780.0,0.108956]
[1732002914178,0.0008554,91781.0,91780.0,0.112956]
[1732002914179,0.0038554,91781.0,91780.0,0.112956]
[1732002914429,0.0068554,91781.0,91780.0,0.116956]
[1732002914634,0.02709434,91781.0,91780.0,0.008]
[1732002915046,0.02409434,91781.0,91780.0,0.004]
[1732002915256,0.02409434,91781.0,91780.0,0.112956]
[1732002915449,0.02709434,91781.0,91780.0,0.116956]
[1732002916078,0.02629434,91781.0,91780.0,0.116956]
[1732002916239,0.02629434,91781.0,91780.0,0.008]
[1732002916441,0.02629434,91781.0,91780.0,0.116956]
[1732002916660,0.13524934,91781.0,91780.0,0.008]
[1732002917111,0.13524934,91781.0,91780.0,0.004]
[1732002917112,0.13224934,91781.0,91780.0,0.004]
[1732002917520,0.35016034,91781.0,91780.0,0.004]
[1732002917930,0.108958,91778.0,91773.0,0.108964]
[1732002918101,0.02023894,91777.0,91773.0,0.108964]
[1732002918301,0.02023894,91776.0,91768.0,0.21794]
[1732002918499,0.02023894,91775.0,91768.0,0.21794]
[1732002918793,0.02023894,91778.0,91773.0,0.108963]
[1732002918947,0.108957,91779.0,91767.0,0.05359158]
[1732002918948,0.02023894,91777.0,91774.0,0.108962]
[1732002919177,0.16347616,91780.0,91775.0,0.108961]
[1732002919178,0.02023894,91776.0,91775.0,0.108961]
[1732002919386,0.02023894,91776.0,91773.0,0.004]
[1732002919613,0.02023894,91777.0,91774.0,0.108963]
[1732002919844,0.02023894,91776.0,91774.0,0.108963]
[1732002920061,0.111958,91778.0,91774.0,0.108963]
[1732002920062,0.02023894,91775.0,91774.0,0.108963]
[1732002920279,0.02323894,91777.0,91773.0,0.008]
[1732002920506,0.02023894,91776.0,91773.0,0.008]
[1732002920716,0.02023894,91775.0,91774.0,0.108962]
[1732002920986,0.003,91776.0,91774.0,0.116962]